[Event "Torneo Nuevo Centro. Jornada 10"]
[Site "Chess.com"]
[Date "2020.08.21"]
[Round "1"]
[White "Bercaru, Vlad Ionut"]
[Black "Leal Uribe, Jhonny Alberto"]
[Result "0-1"]
[WhiteElo "1760"]
[BlackElo "2451"]
[TimeControl "180+2"]
[EndTime "10:38:09 PDT"]
[Termination "Victoria de jhonnyuribe por jaque mate"]

1. c4 {[%clk 0:02:54.6]} 1... e5 {[%clk 0:03:00.1]} 2. Nc3 {[%clk 0:02:54.9]}
2... Nc6 {[%clk 0:03:01.6]} 3. Nf3 {[%clk 0:02:51.6]} 3... a6 {[%clk 0:03:00.8]}
4. d4 {[%clk 0:02:50.1]} 4... exd4 {[%clk 0:03:01.3]} 5. Nxd4 {[%clk 0:02:52]}
5... Nf6 {[%clk 0:03:02.1]} 6. g3 {[%clk 0:02:49.8]} 6... Bc5 {[%clk 0:03:03]}
7. Nxc6 {[%clk 0:02:46.6]} 7... bxc6 {[%clk 0:03:02.5]} 8. Bg2 {[%clk
0:02:47.3]} 8... O-O {[%clk 0:03:00.2]} 9. O-O {[%clk 0:02:47.8]} 9... h6 {[%clk
0:03:01.3]} 10. Bf4 {[%clk 0:02:42.1]} 10... Rb8 {[%clk 0:03:00.1]} 11. Qc2
{[%clk 0:02:38.8]} 11... Bb7 {[%clk 0:02:53.5]} 12. Ne4 {[%clk 0:02:32.5]} 12...
Be7 {[%clk 0:02:51.9]} 13. Rfd1 {[%clk 0:02:15.2]} 13... d6 {[%clk 0:02:48.8]}
14. c5 {[%clk 0:02:02.8]} 14... d5 {[%clk 0:02:45.8]} 15. Nxf6+ {[%clk
0:01:57.4]} 15... Bxf6 {[%clk 0:02:45.6]} 16. e4 {[%clk 0:01:54.5]} 16... Qd7
{[%clk 0:02:32.1]} 17. exd5 {[%clk 0:01:48.5]} 17... cxd5 {[%clk 0:02:32.8]} 18.
Rac1 {[%clk 0:01:41.8]} 18... Bc6 {[%clk 0:02:27.7]} 19. b3 {[%clk 0:01:37.2]}
19... a5 {[%clk 0:02:28.4]} 20. Bd2 {[%clk 0:01:32.5]} 20... a4 {[%clk
0:02:25.6]} 21. Bc3 {[%clk 0:01:31.9]} 21... axb3 {[%clk 0:02:25.6]} 22. axb3
{[%clk 0:01:32.4]} 22... Bg5 {[%clk 0:02:25.2]} 23. f4 {[%clk 0:01:23.1]} 23...
Be7 {[%clk 0:02:24.9]} 24. Bd4 {[%clk 0:01:20.9]} 24... f6 {[%clk 0:02:19.1]}
25. Kh1 {[%clk 0:01:16.3]} 25... Rb4 {[%clk 0:02:15.7]} 26. Bc3 {[%clk 0:01:12]}
26... Rb7 {[%clk 0:02:14.2]} 27. b4 {[%clk 0:01:04.9]} 27... Rd8 {[%clk
0:01:56.1]} 28. Qd3 {[%clk 0:01:00.9]} 28... Bf8 {[%clk 0:01:50.2]} 29. Qd4
{[%clk 0:00:56.6]} 29... Qf5 {[%clk 0:01:42.4]} 30. Re1 {[%clk 0:00:54.8]} 30...
Rbb8 {[%clk 0:01:29.2]} 31. Re2 {[%clk 0:00:50.6]} 31... Bb5 {[%clk 0:01:27.4]}
32. Rd2 {[%clk 0:00:50.2]} 32... c6 {[%clk 0:01:28.4]} 33. Bf1 {[%clk
0:00:46.5]} 33... Bxf1 {[%clk 0:01:22.9]} 34. Rxf1 {[%clk 0:00:48.4]} 34... Re8
{[%clk 0:01:24.3]} 35. Rfd1 {[%clk 0:00:45]} 35... Re4 {[%clk 0:01:24.4]} 36.
Qd3 {[%clk 0:00:42.2]} 36... Rbe8 {[%clk 0:01:19.6]} 37. b5 {[%clk 0:00:35.8]}
37... d4 {[%clk 0:01:08]} 38. Bxd4 {[%clk 0:00:22.3]} 38... Qd5 {[%clk
0:01:04.4]} 39. bxc6 {[%clk 0:00:18.5]} 39... Rxd4+ {[%clk 0:01:02.9]} 40. Kg1
{[%clk 0:00:18.1]} 40... Rxd3 {[%clk 0:01:03.5]} 41. Rxd3 {[%clk 0:00:20]} 41...
Bxc5+ {[%clk 0:01:04.4]} 42. Kf1 {[%clk 0:00:20.4]} 42... Qh1# {[%clk
0:01:05.4]} 0

[Event "Torneo Nuevo Centro. Jornada 10"]
[Site "Chess.com"]
[Date "2020.08.21"]
[Round "1"]
[White "Escalona Moncholi, Felix"]
[Black "Garrido Silos, Pablo"]
[Result "1-0"]
[WhiteElo "2073"]
[BlackElo "1455"]
[TimeControl "180+2"]
[EndTime "10:38:15 PDT"]
[Termination "Victoria de SchachSpielerESP por jaque mate"]

1. e4 {[%clk 0:03:01.9]} 1... e6 {[%clk 0:03:00.4]} 2. d4 {[%clk 0:03:02]} 2...
d5 {[%clk 0:03:01.4]} 3. Bd3 {[%clk 0:03:03.4]} 3... dxe4 {[%clk 0:03:02.1]} 4.
Bxe4 {[%clk 0:03:05.3]} 4... Nf6 {[%clk 0:03:02.9]} 5. Bf3 {[%clk 0:03:06.4]}
5... Be7 {[%clk 0:03:04.1]} 6. Ne2 {[%clk 0:03:07.3]} 6... O-O {[%clk
0:03:04.9]} 7. c4 {[%clk 0:03:08.1]} 7... c6 {[%clk 0:03:04.7]} 8. O-O {[%clk
0:03:08.9]} 8... Nbd7 {[%clk 0:03:05.3]} 9. Nbc3 {[%clk 0:03:08.4]} 9... Re8
{[%clk 0:03:05.6]} 10. Re1 {[%clk 0:03:09]} 10... Nf8 {[%clk 0:03:05.9]} 11. Bf4
{[%clk 0:03:03.6]} 11... Ng6 {[%clk 0:03:04.5]} 12. Bg3 {[%clk 0:03:04]} 12...
Bd6 {[%clk 0:03:03.9]} 13. Qd2 {[%clk 0:03:01.5]} 13... Bxg3 {[%clk 0:03:01.6]}
14. hxg3 {[%clk 0:03:03.4]} 14... Qc7 {[%clk 0:02:47.6]} 15. Rad1 {[%clk
0:02:37.2]} 15... Bd7 {[%clk 0:02:45.5]} 16. Qc2 {[%clk 0:02:34.3]} 16... Rad8
{[%clk 0:02:43.2]} 17. Ne4 {[%clk 0:02:35.3]} 17... Nxe4 {[%clk 0:02:34.3]} 18.
Bxe4 {[%clk 0:02:37.2]} 18... b6 {[%clk 0:02:11.7]} 19. b3 {[%clk 0:02:30.3]}
19... c5 {[%clk 0:01:51.2]} 20. d5 {[%clk 0:02:20.7]} 20... exd5 {[%clk
0:01:50.1]} 21. cxd5 {[%clk 0:02:20.5]} 21... Bb5 {[%clk 0:01:47.8]} 22. Nc3
{[%clk 0:02:21.3]} 22... Ba6 {[%clk 0:01:32.2]} 23. a4 {[%clk 0:02:17.2]} 23...
Bb7 {[%clk 0:01:31.8]} 24. Nb5 {[%clk 0:01:55.2]} 24... Qd7 {[%clk 0:01:07.7]}
25. Nxa7 {[%clk 0:01:22.7]} 25... Bxd5 {[%clk 0:01:05.8]} 26. Rxd5 {[%clk
0:01:16.8]} 26... Qxa7 {[%clk 0:01:02.8]} 27. Red1 {[%clk 0:01:08.1]} 27... Rxd5
{[%clk 0:01:01.1]} 28. Bxd5 {[%clk 0:01:07]} 28... Qc7 {[%clk 0:00:59.5]} 29.
Qf5 {[%clk 0:00:54.9]} 29... Re7 {[%clk 0:00:28.9]} 30. Bc4 {[%clk 0:00:51.5]}
30... Ne5 {[%clk 0:00:26.5]} 31. Bb5 {[%clk 0:00:48.5]} 31... f6 {[%clk
0:00:22.5]} 32. f4 {[%clk 0:00:42.4]} 32... Ng6 {[%clk 0:00:21.5]} 33. Qd5+
{[%clk 0:00:41.6]} 33... Kf8 {[%clk 0:00:20.8]} 34. Bc4 {[%clk 0:00:38.9]} 34...
Ke8 {[%clk 0:00:13.9]} 35. Qa8+ {[%clk 0:00:36]} 35... Qd8 {[%clk 0:00:10.5]}
36. Qxd8# {[%clk 0:00:36.7]} 1

[Event "Torneo Nuevo Centro. Jornada 10"]
[Site "Chess.com"]
[Date "2020.08.21"]
[Round "1"]
[White "Sanchis Bon, Sergi"]
[Black "Gómez Alonso, Óscar"]
[Result "0-1"]
[WhiteElo "1003"]
[BlackElo "1851"]
[TimeControl "180+2"]
[EndTime "10:38:18 PDT"]
[Termination "Victoria de osgo78 por jaque mate"]

1. e4 {[%clk 0:03:01]} 1... c5 {[%clk 0:03:00.7]} 2. Qf3 {[%clk 0:03:00.6]} 2...
Nc6 {[%clk 0:02:56.6]} 3. Bc4 {[%clk 0:02:54.6]} 3... e6 {[%clk 0:02:56.2]} 4.
c3 {[%clk 0:02:51.6]} 4... Ne5 {[%clk 0:02:53.1]} 5. Qe2 {[%clk 0:02:43]} 5...
Nxc4 {[%clk 0:02:48.3]} 6. Qxc4 {[%clk 0:02:40.6]} 6... d5 {[%clk 0:02:47.3]} 7.
exd5 {[%clk 0:02:38.7]} 7... exd5 {[%clk 0:02:48.2]} 8. Qe2+ {[%clk 0:02:33.7]}
8... Qe7 {[%clk 0:02:48.2]} 9. Na3 {[%clk 0:02:29.9]} 9... Bd7 {[%clk 0:02:47]}
10. Qxe7+ {[%clk 0:02:15.1]} 10... Bxe7 {[%clk 0:02:47]} 11. Nf3 {[%clk
0:02:13.7]} 11... Nf6 {[%clk 0:02:46.1]} 12. Ne5 {[%clk 0:02:12.5]} 12... Bc6
{[%clk 0:02:46.8]} 13. Nxc6 {[%clk 0:02:09.2]} 13... bxc6 {[%clk 0:02:48.7]} 14.
O-O {[%clk 0:02:04.4]} 14... O-O {[%clk 0:02:48.9]} 15. Re1 {[%clk 0:02:03.4]}
15... Bd6 {[%clk 0:02:48.6]} 16. d4 {[%clk 0:01:54]} 16... cxd4 {[%clk
0:02:49.1]} 17. cxd4 {[%clk 0:01:49.6]} 17... Bxa3 {[%clk 0:02:46.7]} 18. bxa3
{[%clk 0:01:48.7]} 18... Rfe8 {[%clk 0:02:46.3]} 19. Bd2 {[%clk 0:01:46.9]}
19... Rab8 {[%clk 0:02:35.3]} 20. g3 {[%clk 0:01:36.3]} 20... Ne4 {[%clk
0:02:34.7]} 21. Ba5 {[%clk 0:01:29.3]} 21... Rb5 {[%clk 0:02:07.9]} 22. f3
{[%clk 0:01:27.1]} 22... Rxa5 {[%clk 0:02:03.8]} 23. fxe4 {[%clk 0:01:26.3]}
23... dxe4 {[%clk 0:02:04.7]} 24. Rab1 {[%clk 0:01:18.6]} 24... Rb5 {[%clk
0:01:47.4]} 25. a4 {[%clk 0:01:01.2]} 25... Rb6 {[%clk 0:01:35.1]} 26. a5 {[%clk
0:01:00]} 26... Rb5 {[%clk 0:01:35.8]} 27. a4 {[%clk 0:00:58.7]} 27... Rxa5
{[%clk 0:01:13]} 28. Rb2 {[%clk 0:00:58]} 28... f5 {[%clk 0:01:11.4]} 29. Reb1
{[%clk 0:00:54.2]} 29... Re7 {[%clk 0:01:05.9]} 30. Rb8+ {[%clk 0:00:50.3]}
30... Kf7 {[%clk 0:01:06.8]} 31. Rf1 {[%clk 0:00:42.8]} 31... g6 {[%clk
0:01:05.5]} 32. g4 {[%clk 0:00:42]} 32... Ke6 {[%clk 0:01:05.5]} 33. gxf5+
{[%clk 0:00:42]} 33... gxf5 {[%clk 0:01:06.3]} 34. Rh8 {[%clk 0:00:34]} 34...
Rxa4 {[%clk 0:01:06.4]} 35. Rc1 {[%clk 0:00:30.5]} 35... Kd6 {[%clk 0:01:05.9]}
36. Rf8 {[%clk 0:00:24]} 36... Ra5 {[%clk 0:01:05.1]} 37. Rf6+ {[%clk
0:00:23.7]} 37... Re6 {[%clk 0:01:03.4]} 38. Rxe6+ {[%clk 0:00:20.2]} 38... Kxe6
{[%clk 0:01:04]} 39. Rxc6+ {[%clk 0:00:19.6]} 39... Kd5 {[%clk 0:01:05.1]} 40.
Rc7 {[%clk 0:00:19.9]} 40... Kxd4 {[%clk 0:01:05.3]} 41. Rxh7 {[%clk 0:00:20.2]}
41... f4 {[%clk 0:01:06.4]} 42. Rh4 {[%clk 0:00:20.5]} 42... Ke3 {[%clk
0:01:07.3]} 43. Rh3+ {[%clk 0:00:19.9]} 43... f3 {[%clk 0:01:08.3]} 44. Kf1
{[%clk 0:00:20.5]} 44... Ra1# {[%clk 0:01:08.6]} 0

[Event "Torneo Nuevo Centro. Jornada 10"]
[Site "Chess.com"]
[Date "2020.08.21"]
[Round "1"]
[White "Ortiz Benavent, Alba"]
[Black "Cantero Navarro, Antonio"]
[Result "0-1"]
[WhiteElo "1208"]
[BlackElo "1888"]
[TimeControl "180+2"]
[EndTime "10:38:29 PDT"]
[Termination "Victoria de aprendis65 por jaque mate"]

1. d4 {[%clk 0:02:57.3]} 1... d5 {[%clk 0:02:59.1]} 2. Nf3 {[%clk 0:02:54.4]}
2... Nf6 {[%clk 0:02:59.1]} 3. Bf4 {[%clk 0:02:52.5]} 3... c5 {[%clk 0:02:59.3]}
4. e3 {[%clk 0:02:49.6]} 4... Nc6 {[%clk 0:02:56.9]} 5. c3 {[%clk 0:02:46.8]}
5... Qb6 {[%clk 0:02:56.1]} 6. Qb3 {[%clk 0:02:46]} 6... c4 {[%clk 0:02:56.6]}
7. Qxb6 {[%clk 0:02:45.3]} 7... axb6 {[%clk 0:02:58.5]} 8. a3 {[%clk 0:02:44.2]}
8... b5 {[%clk 0:02:59.4]} 9. Nbd2 {[%clk 0:02:43.9]} 9... b4 {[%clk 0:03:00.2]}
10. cxb4 {[%clk 0:02:40.5]} 10... Nxb4 {[%clk 0:03:00.6]} 11. Rc1 {[%clk
0:02:20.3]} 11... Nc6 {[%clk 0:02:55.5]} 12. Be2 {[%clk 0:02:19.8]} 12... b5
{[%clk 0:02:55.6]} 13. O-O {[%clk 0:02:17.1]} 13... b4 {[%clk 0:02:56.2]} 14.
axb4 {[%clk 0:02:15.7]} 14... Nxb4 {[%clk 0:02:56.7]} 15. Ra1 {[%clk 0:02:07.6]}
15... Ra6 {[%clk 0:02:26]} 16. Rxa6 {[%clk 0:02:00.5]} 16... Bxa6 {[%clk
0:02:18.9]} 17. Ne5 {[%clk 0:01:50.3]} 17... Nd7 {[%clk 0:02:11.3]} 18. Nxd7
{[%clk 0:01:49]} 18... Kxd7 {[%clk 0:02:12]} 19. Ra1 {[%clk 0:01:41.9]} 19... e6
{[%clk 0:02:12.1]} 20. Nf3 {[%clk 0:01:35.7]} 20... f6 {[%clk 0:02:12.5]} 21.
Bd1 {[%clk 0:01:31.6]} 21... Bd6 {[%clk 0:01:56]} 22. Ba4+ {[%clk 0:01:28.4]}
22... Ke7 {[%clk 0:01:56.3]} 23. Bxd6+ {[%clk 0:01:27]} 23... Kxd6 {[%clk
0:01:56.5]} 24. Nd2 {[%clk 0:01:19.4]} 24... Ra8 {[%clk 0:01:39.8]} 25. Bd1
{[%clk 0:01:11.9]} 25... Nd3 {[%clk 0:01:33.8]} 26. Ra2 {[%clk 0:01:06.6]} 26...
Bb7 {[%clk 0:01:31.2]} 27. Rxa8 {[%clk 0:01:05.8]} 27... Bxa8 {[%clk 0:01:33.1]}
28. Bc2 {[%clk 0:01:01.8]} 28... Nxb2 {[%clk 0:01:32.3]} 29. Bxh7 {[%clk
0:01:01.6]} 29... f5 {[%clk 0:01:22.5]} 30. Bg6 {[%clk 0:01:00.7]} 30... c3
{[%clk 0:01:22.4]} 31. Nb3 {[%clk 0:00:59.6]} 31... Bc6 {[%clk 0:01:14.7]} 32.
Nc1 {[%clk 0:00:58.1]} 32... Bb5 {[%clk 0:01:02.1]} 33. f3 {[%clk 0:00:49.3]}
33... c2 {[%clk 0:00:58.7]} 34. Kf2 {[%clk 0:00:43.3]} 34... Nd3+ {[%clk
0:00:58]} 35. Nxd3 {[%clk 0:00:40.8]} 35... Bxd3 {[%clk 0:00:59.9]} 36. Ke1
{[%clk 0:00:40.2]} 36... c1=Q+ {[%clk 0:00:59.6]} 37. Kf2 {[%clk 0:00:39.7]}
37... Qd2+ {[%clk 0:00:59.7]} 38. Kg3 {[%clk 0:00:39.8]} 38... Qxe3 {[%clk
0:01:01.5]} 39. h3 {[%clk 0:00:36.5]} 39... f4+ {[%clk 0:01:01.7]} 40. Kh2
{[%clk 0:00:30.3]} 40... Bxg6 {[%clk 0:01:01.8]} 41. h4 {[%clk 0:00:28.4]} 41...
Bh5 {[%clk 0:00:59.9]} 42. Kh3 {[%clk 0:00:25.4]} 42... Qg1 {[%clk 0:00:54.4]}
43. g4 {[%clk 0:00:24.1]} 43... Qh1# {[%clk 0:00:51.7]} 0

[Event "Torneo Nuevo Centro. Jornada 10"]
[Site "Chess.com"]
[Date "2020.08.21"]
[Round "1"]
[White "Macias Pino, Diego"]
[Black "Beneyto de Ramon, Guillermo"]
[Result "1-0"]
[WhiteElo "2229"]
[BlackElo "1665"]
[TimeControl "180+2"]
[EndTime "10:38:38 PDT"]
[Termination "Victoria de adivinaquiensoy por tiempo"]

1. d4 {[%clk 0:02:58]} 1... d5 {[%clk 0:02:58.2]} 2. Nf3 {[%clk 0:02:56.3]} 2...
e6 {[%clk 0:02:58]} 3. Bf4 {[%clk 0:02:55.7]} 3... c6 {[%clk 0:02:57.5]} 4. e3
{[%clk 0:02:55.1]} 4... f5 {[%clk 0:02:57.4]} 5. c4 {[%clk 0:02:53.9]} 5... Nf6
{[%clk 0:02:56.7]} 6. Nc3 {[%clk 0:02:53.8]} 6... Bd6 {[%clk 0:02:55.8]} 7. Ne5
{[%clk 0:02:53.4]} 7... Bxe5 {[%clk 0:02:45.9]} 8. Bxe5 {[%clk 0:02:47.7]} 8...
O-O {[%clk 0:02:45.6]} 9. Be2 {[%clk 0:02:42.2]} 9... Ne4 {[%clk 0:02:41.3]} 10.
f3 {[%clk 0:02:25.9]} 10... Nxc3 {[%clk 0:02:35.9]} 11. bxc3 {[%clk 0:02:27.8]}
11... Nd7 {[%clk 0:02:35.7]} 12. Bg3 {[%clk 0:02:28.2]} 12... Nf6 {[%clk
0:02:33.7]} 13. Qd2 {[%clk 0:02:21.9]} 13... Nh5 {[%clk 0:02:21.8]} 14. Be5
{[%clk 0:02:20.6]} 14... Nf6 {[%clk 0:02:08.4]} 15. O-O {[%clk 0:01:59.6]} 15...
b6 {[%clk 0:02:01.9]} 16. a4 {[%clk 0:01:55.6]} 16... Bb7 {[%clk 0:02:00.2]} 17.
Rfb1 {[%clk 0:01:54.7]} 17... Qd7 {[%clk 0:01:56.4]} 18. a5 {[%clk 0:01:50]}
18... Qd8 {[%clk 0:01:53]} 19. Qb2 {[%clk 0:01:21.6]} 19... Nd7 {[%clk
0:01:48.5]} 20. Bg3 {[%clk 0:01:22.3]} 20... Rb8 {[%clk 0:01:34.6]} 21. Bxb8
{[%clk 0:01:07.8]} 21... Qxb8 {[%clk 0:01:29.5]} 22. axb6 {[%clk 0:01:08.4]}
22... axb6 {[%clk 0:01:29.6]} 23. c5 {[%clk 0:00:55.5]} 23... b5 {[%clk
0:01:22.4]} 24. Bxb5 {[%clk 0:00:53.4]} 24... Qc7 {[%clk 0:00:59.9]} 25. Ba6
{[%clk 0:00:51.6]} 25... Bc8 {[%clk 0:00:58.5]} 26. Bxc8 {[%clk 0:00:51.7]}
26... Rxc8 {[%clk 0:01:00.3]} 27. Qb7 {[%clk 0:00:52.6]} 27... Qd8 {[%clk
0:00:59.7]} 28. Ra7 {[%clk 0:00:52.3]} 28... Rb8 {[%clk 0:00:51.7]} 29. Qxd7
{[%clk 0:00:53.2]} 29... Rxb1+ {[%clk 0:00:49.9]} 30. Kf2 {[%clk 0:00:50]} 30...
Qh4+ {[%clk 0:00:47.7]} 31. Ke2 {[%clk 0:00:50]} 31... Rb2+ {[%clk 0:00:47.8]}
32. Kd3 {[%clk 0:00:47.7]} 32... Rd2+ {[%clk 0:00:29.7]} 33. Kxd2 {[%clk
0:00:45.7]} 33... Qf2+ {[%clk 0:00:30.7]} 34. Kd3 {[%clk 0:00:45.6]} 34... Qf1+
{[%clk 0:00:31.6]} 35. Kc2 {[%clk 0:00:46.5]} 35... Qe2+ {[%clk 0:00:32.5]} 36.
Kb3 {[%clk 0:00:48.1]} 36... Qc4+ {[%clk 0:00:28.7]} 37. Kb2 {[%clk 0:00:42.5]}
37... Qb5+ {[%clk 0:00:20.3]} 38. Ka3 {[%clk 0:00:43.3]} 1

[Event "Torneo Nuevo Centro. Jornada 10"]
[Site "Chess.com"]
[Date "2020.08.21"]
[Round "1"]
[White "Maestre Soler, Sergio"]
[Black "De Nacimiento Montano, Antonio"]
[Result "0-1"]
[WhiteElo "926"]
[BlackElo "1842"]
[TimeControl "180+2"]
[EndTime "10:39:38 PDT"]
[Termination "Victoria de Twitch_adn4815 por jaque mate"]

1. e4 {[%clk 0:03:01.3]} 1... c5 {[%clk 0:03:00.7]} 2. Bc4 {[%clk 0:02:59.3]}
2... e6 {[%clk 0:02:59.3]} 3. d4 {[%clk 0:02:54.2]} 3... cxd4 {[%clk 0:02:55.8]}
4. Qxd4 {[%clk 0:02:54.5]} 4... a6 {[%clk 0:02:51.6]} 5. Nf3 {[%clk 0:02:51]}
5... b5 {[%clk 0:02:52.1]} 6. Bb3 {[%clk 0:02:38.2]} 6... Bb7 {[%clk 0:02:39.1]}
7. Nc3 {[%clk 0:02:26.3]} 7... Qc7 {[%clk 0:02:08.1]} 8. O-O {[%clk 0:02:14]}
8... d6 {[%clk 0:01:57.7]} 9. e5 {[%clk 0:02:04.5]} 9... Nc6 {[%clk 0:01:41.1]}
10. exd6 {[%clk 0:01:54]} 10... Qxd6 {[%clk 0:01:19.3]} 11. Qb6 {[%clk
0:01:34.9]} 11... Rb8 {[%clk 0:01:08.5]} 12. h3 {[%clk 0:01:23.9]} 12... Nf6
{[%clk 0:01:07.3]} 13. Qe3 {[%clk 0:01:14.7]} 13... Be7 {[%clk 0:01:05]} 14. a4
{[%clk 0:01:08.5]} 14... b4 {[%clk 0:01:04.5]} 15. Ne4 {[%clk 0:01:05.5]} 15...
Nxe4 {[%clk 0:01:05.1]} 16. Qxe4 {[%clk 0:01:06]} 16... O-O {[%clk 0:01:04.1]}
17. c3 {[%clk 0:01:05.6]} 17... a5 {[%clk 0:00:59.7]} 18. Bc2 {[%clk 0:01:06.2]}
18... g6 {[%clk 0:00:56.9]} 19. Ng5 {[%clk 0:01:03.9]} 19... h6 {[%clk
0:00:06.4]} 20. Nf3 {[%clk 0:01:02.6]} 20... Nd8 {[%clk 0:00:06.4]} 21. Qd4
{[%clk 0:01:02.9]} 21... Qxd4 {[%clk 0:00:07.2]} 22. cxd4 {[%clk 0:01:03.6]}
22... Kg7 {[%clk 0:00:08.4]} 23. b3 {[%clk 0:01:03]} 23... Bxf3 {[%clk
0:00:09.7]} 24. Bb2 {[%clk 0:01:02.2]} 24... Bf6 {[%clk 0:00:11.6]} 25. gxf3
{[%clk 0:01:02.8]} 25... Nc6 {[%clk 0:00:12.5]} 26. f4 {[%clk 0:01:04]} 26...
Nxd4 {[%clk 0:00:13.7]} 27. Bxd4 {[%clk 0:01:04.9]} 27... Bxd4 {[%clk
0:00:15.6]} 28. Rad1 {[%clk 0:01:05.7]} 28... Bc3 {[%clk 0:00:16.8]} 29. Rd3
{[%clk 0:01:06.5]} 29... Rfc8 {[%clk 0:00:16.4]} 30. Rfd1 {[%clk 0:01:06.6]}
30... Rc7 {[%clk 0:00:17.1]} 31. Rg3 {[%clk 0:01:04]} 31... Rbc8 {[%clk
0:00:16.6]} 32. Rf1 {[%clk 0:01:03.6]} 32... Bd4 {[%clk 0:00:16.4]} 33. h4
{[%clk 0:01:01.3]} 33... Rxc2 {[%clk 0:00:17.1]} 34. f5 {[%clk 0:00:57.3]} 34...
exf5 {[%clk 0:00:17.7]} 35. Rd3 {[%clk 0:00:56.9]} 35... Bc3 {[%clk 0:00:15.2]}
36. h5 {[%clk 0:00:54.9]} 36... g5 {[%clk 0:00:15.7]} 37. Rd7 {[%clk 0:00:52.1]}
37... Re8 {[%clk 0:00:15.3]} 38. Ra7 {[%clk 0:00:47.1]} 38... Ree2 {[%clk
0:00:16]} 39. Kg2 {[%clk 0:00:44.7]} 39... Bd4 {[%clk 0:00:16.6]} 40. Rd7 {[%clk
0:00:41.7]} 40... Rxf2+ {[%clk 0:00:17.2]} 41. Rxf2 {[%clk 0:00:34.5]} 41...
Rxf2+ {[%clk 0:00:19.1]} 42. Kg3 {[%clk 0:00:34.5]} 42... Rd2 {[%clk 0:00:14.9]}
43. Ra7 {[%clk 0:00:29.6]} 43... Bxa7 {[%clk 0:00:13.8]} 44. Kf3 {[%clk
0:00:29.3]} 44... Rd3+ {[%clk 0:00:14.2]} 45. Ke2 {[%clk 0:00:28.3]} 45... Rxb3
{[%clk 0:00:15.2]} 46. Kd2 {[%clk 0:00:28.4]} 46... Rc3 {[%clk 0:00:16.4]} 47.
Kd1 {[%clk 0:00:26.7]} 47... Bd4 {[%clk 0:00:17.1]} 48. Ke2 {[%clk 0:00:27.3]}
48... b3 {[%clk 0:00:17.5]} 49. Kd2 {[%clk 0:00:26.7]} 49... b2 {[%clk
0:00:18.6]} 50. Kd1 {[%clk 0:00:26.4]} 50... b1=Q+ {[%clk 0:00:19.3]} 51. Ke2
{[%clk 0:00:27.6]} 51... Qb2+ {[%clk 0:00:20.7]} 52. Ke1 {[%clk 0:00:27.8]}
52... Rc1# {[%clk 0:00:22.6]} 0

[Event "Torneo Nuevo Centro. Jornada 10"]
[Site "Chess.com"]
[Date "2020.08.21"]
[Round "1"]
[White "Serarols Mabras, Bernat"]
[Black "Pardo Ruiz, Carlos"]
[Result "1-0"]
[WhiteElo "2381"]
[BlackElo "1690"]
[TimeControl "180+2"]
[EndTime "10:39:45 PDT"]
[Termination "Victoria de bernatserarols por jaque mate"]

1. d4 {[%clk 0:02:55.2]} 1... c5 {[%clk 0:02:58.9]} 2. d5 {[%clk 0:02:54.1]}
2... Nf6 {[%clk 0:02:58.1]} 3. c4 {[%clk 0:02:53.1]} 3... b5 {[%clk 0:02:58.5]}
4. cxb5 {[%clk 0:02:53.6]} 4... a6 {[%clk 0:02:59.5]} 5. bxa6 {[%clk 0:02:54]}
5... Bxa6 {[%clk 0:03:01.4]} 6. Nc3 {[%clk 0:02:53.9]} 6... d6 {[%clk
0:03:02.1]} 7. g3 {[%clk 0:02:54.3]} 7... g6 {[%clk 0:03:02.8]} 8. Bg2 {[%clk
0:02:52.1]} 8... Bg7 {[%clk 0:03:04.1]} 9. Nf3 {[%clk 0:02:53.2]} 9... O-O
{[%clk 0:03:04.7]} 10. O-O {[%clk 0:02:48.4]} 10... Nbd7 {[%clk 0:03:05]} 11.
Rb1 {[%clk 0:02:43.6]} 11... Qb6 {[%clk 0:02:59]} 12. Qc2 {[%clk 0:02:42]} 12...
Rfb8 {[%clk 0:02:57.8]} 13. Re1 {[%clk 0:02:39.3]} 13... Bc4 {[%clk 0:02:49.8]}
14. Nd2 {[%clk 0:01:46.7]} 14... Bxa2 {[%clk 0:02:38.3]} 15. Nxa2 {[%clk
0:01:34.4]} 15... Rxa2 {[%clk 0:02:37.3]} 16. Nc4 {[%clk 0:01:33.8]} 16... Qb4
{[%clk 0:02:32.8]} 17. Bd2 {[%clk 0:01:33]} 17... Qb7 {[%clk 0:02:26.4]} 18. e4
{[%clk 0:01:30]} 18... Rba8 {[%clk 0:02:18.7]} 19. e5 {[%clk 0:01:21.9]} 19...
Ne8 {[%clk 0:02:02.1]} 20. e6 {[%clk 0:01:13.8]} 20... Nb6 {[%clk 0:01:49.2]}
21. exf7+ {[%clk 0:01:08.8]} 21... Kxf7 {[%clk 0:01:48.1]} 22. Qb3 {[%clk
0:01:00.3]} 22... R2a6 {[%clk 0:01:37.2]} 23. h4 {[%clk 0:00:57]} 23... Rb8
{[%clk 0:01:30]} 24. Na5 {[%clk 0:00:52.1]} 24... Qa8 {[%clk 0:01:19]} 25. Nc6
{[%clk 0:00:47]} 25... Rb7 {[%clk 0:01:10.6]} 26. h5 {[%clk 0:00:46]} 26... gxh5
{[%clk 0:00:52.8]} 27. Qf3+ {[%clk 0:00:46.2]} 27... Kg8 {[%clk 0:00:52.7]} 28.
Qxh5 {[%clk 0:00:46.2]} 28... Nf6 {[%clk 0:00:48.6]} 29. Qg5 {[%clk 0:00:40.9]}
29... Qf8 {[%clk 0:00:30.7]} 30. Bc3 {[%clk 0:00:41.6]} 30... Na4 {[%clk
0:00:28.1]} 31. Bxf6 {[%clk 0:00:32]} 31... Qxf6 {[%clk 0:00:26.5]} 32. Nxe7+
{[%clk 0:00:31.7]} 32... Rxe7 {[%clk 0:00:23.9]} 33. Qg4 {[%clk 0:00:28]} 33...
Ra8 {[%clk 0:00:20.6]} 34. Bh3 {[%clk 0:00:26.2]} 34... Rxe1+ {[%clk 0:00:19.4]}
35. Rxe1 {[%clk 0:00:26.8]} 35... Rf8 {[%clk 0:00:20.3]} 36. Re2 {[%clk
0:00:20.1]} 36... Nxb2 {[%clk 0:00:19.1]} 37. Qh5 {[%clk 0:00:14.8]} 37... Nd3
{[%clk 0:00:14.4]} 38. Be6+ {[%clk 0:00:15]} 38... Kh8 {[%clk 0:00:14.3]} 39.
Kg2 {[%clk 0:00:14.8]} 39... Ne5 {[%clk 0:00:14.6]} 40. f4 {[%clk 0:00:14.8]}
40... Ng6 {[%clk 0:00:14.9]} 41. Qh1 {[%clk 0:00:11.1]} 41... Qd4 {[%clk
0:00:13.1]} 42. Qe1 {[%clk 0:00:10.4]} 42... Ra8 {[%clk 0:00:09.4]} 43. Bf7
{[%clk 0:00:10.2]} 43... Nf8 {[%clk 0:00:08.3]} 44. Re8 {[%clk 0:00:10]} 44...
Rxe8 {[%clk 0:00:08.8]} 45. Qxe8 {[%clk 0:00:10.3]} 45... Qd2+ {[%clk
0:00:09.7]} 46. Kh3 {[%clk 0:00:11.9]} 46... c4 {[%clk 0:00:09.1]} 47. Be6
{[%clk 0:00:10.6]} 47... c3 {[%clk 0:00:05.8]} 48. Qf7 {[%clk 0:00:11.9]} 48...
Nxe6 {[%clk 0:00:05.2]} 49. dxe6 {[%clk 0:00:13.8]} 49... c2 {[%clk 0:00:05.4]}
50. Qe8+ {[%clk 0:00:15]} 50... Bf8 {[%clk 0:00:05.3]} 51. Qxf8# {[%clk
0:00:16.9]} 1